[Event "FRA-ch Teams Top 16-A 2022"]
[Site "Chartres"]
[Date "2022.06.14"]
[Round "6.10"]
[White "Ganguly, Surya Shekhar"]
[Black "Piorun, Kacper"]
[Result "1/2-1/2"]
[ECO "B10"]
[WhiteElo "2616"]
[BlackElo "2635"]
[Annotator "RC"]
[PlyCount "48"]
[EventDate "2022.06.09"]
[EventType "team-tourn"]
[EventCountry "FRA"]
[SourceTitle "playchess.com"]
[Source "ChessBase"]
[SourceQuality "1"]
[TimeControl "40/5400+30:1800+30"]

1. e4 {[%emt 0:00:13]} c6 {[%emt 0:00:20]} 2. Nf3 {[%emt 0:00:54]} d5 {[%emt 0:00:07]} 3. d3 {[%emt 0:00:06]} dxe4 {[%emt 0:00:25]} 4. dxe4 {[%emt 0:00:07]} Qxd1+ {[%emt 0:00:06]} 5. Kxd1 {[%emt 0:00:06]} Nd7 {[%emt 0:00:20]} 6. Ne1 {[%emt 0:16:04]} g6 {[%emt 0:04:36]} 7. Nd3 {[%emt 0:04:45]} Bg7 {[%emt 0:02:01]} 8. a4 {[%emt 0:03:57]} f5 {[%emt 0:01:30]} 9. exf5 {[%emt 0:02:28]} gxf5 {[%emt 0:00:07]} 10. Nf4 {[%emt 0:00:51]} Ne5 {[%emt 0:01:02]} 11. Nh5 {[%emt 0:07:43]} Bh6 {[%emt 0:01:49]} 12. Bd2 {[%emt 0:03:36]} Bxd2 {[%emt 0:10:42]} 13. Nxd2 {[%emt 0:00:20]} Kf7 {[%emt 0:00:10]} 14. Bc4+ {[%emt 0:06:55]} Nxc4 {[%emt 0:10:54]} 15. Nxc4 {[%emt 0:00:11]} Nf6 {[%emt 0:00:07]} 16. Ne5+ {[%emt 0:02:01]} Ke6 {[%emt 0:00:35]} 17. Nxf6 {[%emt 0:00:08]} Kxf6 {[%emt 0:18:47]} 18. Re1 {[%emt 0:01:38]} Rd8+ {[%emt 0:04:11]} 19. Kc1 {[%emt 0:00:11]} f4 {[%emt 0:01:43]} 20. a5 {[%emt 0:19:18]} Rd5 {[%emt 0:00:44]} 21. Nd3 {[%emt 0:00:31]} e5 {[%emt 0:00:10]} 22. Nb4 {[%emt 0:02:21]} Rd6 {[%emt 0:08:54]} 23. Nd3 {[%emt 0:00:30]} Rd5 {[%emt 0:00:12]} 24. Nb4 {[%emt 0:00:05]} Rd6 {[%emt 0:00:06]} 1/2-1/2

[Event "FRA-ch Teams Top 16-A 2022"]
[Site "Chartres"]
[Date "2022.06.14"]
[Round "6.11"]
[White "Van Foreest, Lucas"]
[Black "Postny, Evgeny"]
[Result "0-1"]
[ECO "A07"]
[WhiteElo "2572"]
[BlackElo "2563"]
[Annotator "RC"]
[PlyCount "96"]
[EventDate "2022.06.09"]
[EventType "team-tourn"]
[EventCountry "FRA"]
[SourceTitle "playchess.com"]
[Source "ChessBase"]
[SourceQuality "1"]
[TimeControl "40/5400+30:1800+30"]

1. Nf3 {[%emt 0:01:35]} d5 {[%emt 0:00:08]} 2. g3 {[%emt 0:00:21]} c6 {[%emt 0:00:41]} 3. Bg2 {[%emt 0:00:10]} Bg4 {[%emt 0:00:06]} 4. h3 {[%emt 0:00:07]} Bxf3 {[%emt 0:00:22]} 5. Bxf3 {[%emt 0:00:08]} Nf6 {[%emt 0:01:45]} 6. d3 {[%emt 0:01:33]} e5 {[%emt 0:01:43]} 7. e4 {[%emt 0:00:16]} dxe4 {[%emt 0:03:26]} 8. dxe4 {[%emt 0:00:37]} Qxd1+ {[%emt 0:03:42]} 9. Kxd1 {[%emt 0:00:10]} Nbd7 {[%emt 0:00:11]} 10. Ke2 {[%emt 0:03:03]} Nc5 {[%emt 0:10:10]} 11. Nd2 {[%emt 0:00:33]} h5 {[%emt 0:02:43]} 12. h4 {[%emt 0:07:47]} g6 {[%emt 0:02:15]} 13. Nc4 {[%emt 0:03:30]} Nfxe4 {[%emt 0:09:01]} 14. Nxe5 {[%emt 0:01:05]} Bg7 {[%emt 0:00:23]} 15. Nc4 {[%emt 0:00:50]} O-O-O {[%emt 0:06:45]} 16. Re1 {[%emt 0:13:42]} Rd4 {[%emt 0:10:02]} 17. Na5 {[%emt 0:10:22]} Rhd8 {[%emt 0:04:47]} 18. Be3 {[%emt 0:05:07]} Rd2+ {[%emt 0:01:45]} 19. Kf1 {[%emt 0:02:37]} Rxc2 {[%emt 0:06:43]} 20. Rac1 {[%emt 0:21:22]} Rxc1 {[%emt 0:17:27]} 21. Rxc1 {[%emt 0:00:52]} Bd4 {[%emt 0:00:09]} 22. Bxd4 {[%emt 0:04:30]} Rxd4 {[%emt 0:00:05]} 23. Bxe4 {[%emt 0:00:46]} Nxe4 {[%emt 0:00:10]} 24. Re1 {[%emt 0:00:29]} f5 {[%emt 0:02:04]} 25. Re2 {[%emt 0:01:56]} Ra4 {[%emt 0:01:07]} 26. Nb3 {[%emt 0:00:33]} Rxa2 {[%emt 0:00:06]} 27. Kg2 {[%emt 0:00:22]} Ra4 {[%emt 0:00:55]} 28. f3 {[%emt 0:02:03]} Rb4 {[%emt 0:01:46]} 29. Re3 {[%emt 0:04:40]} Nf6 {[%emt 0:03:03]} 30. Rd3 {[%emt 0:00:54]} Nd5 {[%emt 0:00:25]} 31. Kf1 {[%emt 0:00:54]} Kc7 {[%emt 0:02:40]} 32. Ke1 {[%emt 0:00:52]} b6 {[%emt 0:03:01]} 33. Kd2 {[%emt 0:00:29]} a5 {[%emt 0:00:07]} 34. Kc1 {[%emt 0:00:20]} a4 {[%emt 0:03:58]} 35. Nd4 {[%emt 0:00:13]} Kd6 {[%emt 0:00:19]} 36. Ne2 {[%emt 0:00:28]} Ke5 {[%emt 0:00:53]} 37. Ra3 {[%emt 0:00:13]} b5 {[%emt 0:00:29]} 38. Kc2 {[%emt 0:00:04]} Rc4+ {[%emt 0:00:47]} 39. Kd2 {[%emt 0:00:05]} Kd6 {[%emt 0:02:13]} 40. Nc1 {[%emt 0:00:36]} Rd4+ {[%emt 0:00:24]} 41. Ke2 {[%emt 0:30:25]} Rb4 {[%emt 0:30:50]} 42. Nd3 {[%emt 0:00:19]} Rc4 {[%emt 0:00:00]} 43. Kd2 {[%emt 0:00:00]} c5 {[%emt 0:00:00]} 44. Ra1 {[%emt 0:00:00]} Rd4 {[%emt 0:00:00]} 45. Ke2 {[%emt 0:00:00]} c4 {[%emt 0:00:00]} 46. Ne1 {[%emt 0:00:00]} Kc5 {[%emt 0:00:00]} 47. Ra3 {[%emt 0:00:00]} Nb4 {[%emt 0:00:00]} 48. Re3 {[%emt 0:00:00]} Nd3 {[%emt 0:00:00]} 0-1

[Event "FRA-ch Teams Top 16-A 2022"]
[Site "Chartres"]
[Date "2022.06.14"]
[Round "6.12"]
[White "Visakh N R"]
[Black "Vlachos, Anatole"]
[Result "0-1"]
[ECO "D27"]
[WhiteElo "2506"]
[BlackElo "2410"]
[Annotator "RC"]
[PlyCount "122"]
[EventDate "2022.06.09"]
[EventType "team-tourn"]
[EventCountry "FRA"]
[SourceTitle "playchess.com"]
[Source "ChessBase"]
[SourceQuality "1"]
[TimeControl "40/5400+30:1800+30"]

1. d4 {[%emt 0:00:10]} d5 {[%emt 0:00:07]} 2. c4 {[%emt 0:00:09]} dxc4 {[%emt 0:00:09]} 3. Nf3 {[%emt 0:01:25]} Nf6 {[%emt 0:00:04]} 4. e3 {[%emt 0:00:05]} e6 {[%emt 0:00:04]} 5. Bxc4 {[%emt 0:00:17]} c5 {[%emt 0:00:03]} 6. O-O {[%emt 0:02:09]} a6 {[%emt 0:00:02]} 7. b3 {[%emt 0:06:33]} Nbd7 {[%emt 0:00:07]} 8. Bb2 {[%emt 0:03:12]} Be7 {[%emt 0:00:06]} 9. dxc5 {[%emt 0:06:03]} Bxc5 {[%emt 0:00:13]} 10. Nbd2 {[%emt 0:00:16]} O-O {[%emt 0:30:58]} 11. Rc1 {[%emt 0:00:12]} b6 {[%emt 0:00:46]} 12. Qc2 {[%emt 0:02:56]} Bb7 {[%emt 0:00:18]} 13. Rfd1 {[%emt 0:00:28]} Rc8 {[%emt 0:01:31]} 14. Qb1 {[%emt 0:00:10]} Qe7 {[%emt 0:03:01]} 15. Bd3 {[%emt 0:09:50]} b5 {[%emt 0:05:26]} 16. Ne4 {[%emt 0:05:19]} Bxe4 {[%emt 0:06:43]} 17. Bxe4 {[%emt 0:01:06]} Ba3 {[%emt 0:03:51]} 18. Bd3 {[%emt 0:21:27]} Bxb2 {[%emt 0:03:27]} 19. Qxb2 {[%emt 0:00:08]} Nd5 {[%emt 0:08:25]} 20. Nd4 {[%emt 0:06:33]} Nc5 {[%emt 0:02:57]} 21. Bb1 {[%emt 0:01:36]} g6 {[%emt 0:02:30]} 22. Qd2 {[%emt 0:09:21]} b4 {[%emt 0:02:27]} 23. Ne2 {[%emt 0:00:12]} a5 {[%emt 0:02:55]} 24. e4 {[%emt 0:02:45]} Nf6 {[%emt 0:01:20]} 25. e5 {[%emt 0:07:30]} Nd5 {[%emt 0:25:30]} 26. Rc4 Nd7 {[%emt 0:00:00]} 27. Rxc8 {[%emt 0:02:27]} Rxc8 {[%emt 0:00:00]} 28. Qd4 {[%emt 0:00:25]} Qc5 {[%emt 0:00:00]} 29. Qxc5 {[%emt 0:04:52]} Rxc5 {[%emt 0:00:00]} 30. f4 {[%emt 0:00:01]} N7b6 {[%emt 0:00:00]} 31. Kf2 {[%emt 0:00:33]} a4 {[%emt 0:00:00]} 32. Rd4 {[%emt 0:01:43]} axb3 {[%emt 0:00:00]} 33. axb3 {[%emt 0:00:02]} Ra5 {[%emt 0:00:00]} 34. Be4 {[%emt 0:01:05]} Ra2 {[%emt 0:00:00]} 35. Kf3 {[%emt 0:01:01]} Rb2 {[%emt 0:00:00]} 36. Nc1 {[%emt 0:00:41]} h5 {[%emt 0:01:45]} 37. h4 {[%emt 0:00:11]} Kf8 {[%emt 0:00:18]} 38. g3 {[%emt 0:00:54]} Ke7 {[%emt 0:00:21]} 39. Bxd5 {[%emt 0:04:22]} Nxd5 {[%emt 0:00:10]} 40. Rc4 {[%emt 0:00:02]} f6 {[%emt 0:04:04]} 41. exf6+ {[%emt 0:32:01]} Kxf6 {[%emt 0:30:02]} 42. Rc8 {[%emt 0:00:00]} Rd2 {[%emt 0:00:00]} 43. Rf8+ {[%emt 0:00:00]} Ke7 {[%emt 0:00:00]} 44. Rc8 {[%emt 0:00:00]} Nc3 {[%emt 0:00:00]} 45. Ra8 {[%emt 0:00:00]} Rd1 {[%emt 0:00:00]} 46. Ra1 {[%emt 0:00:00]} Kf6 {[%emt 0:00:00]} 47. Ke3 {[%emt 0:00:00]} Rh1 {[%emt 0:00:00]} 48. Kf3 {[%emt 0:00:00]} Nd5 {[%emt 0:00:00]} 49. Kg2 {[%emt 0:00:00]} Rd1 {[%emt 0:00:00]} 50. Kf3 {[%emt 0:00:00]} Ne7 {[%emt 0:00:00]} 51. Ke2 {[%emt 0:00:00]} Rg1 {[%emt 0:00:00]} 52. Kd2 {[%emt 0:02:22]} Rxg3 {[%emt 0:00:00]} 53. Ne2 {[%emt 0:01:21]} Rxb3 {[%emt 0:00:00]} 54. Nd4 {[%emt 0:00:41]} Ra3 {[%emt 0:00:00]} 55. Re1 {[%emt 0:00:38]} Ra6 {[%emt 0:00:00]} 56. Rc1 {[%emt 0:00:53]} Rd6 {[%emt 0:00:00]} 57. Ke3 {[%emt 0:00:02]} Nd5+ {[%emt 0:00:00]} 58. Kf3 {[%emt 0:00:08]} Nxf4 {[%emt 0:00:00]} 59. Rc4 {[%emt 0:00:05]} Nd5 {[%emt 0:00:00]} 60. Ke4 {[%emt 0:01:51]} Ra6 {[%emt 0:00:00]} 61. Rc1 {[%emt 0:00:28]} Ra3 {[%emt 0:00:00]} 0-1

[Event "FRA-ch Teams Top 16-A 2022"]
[Site "Chartres"]
[Date "2022.06.14"]
[Round "6.13"]
[White "Flom, Gabriel"]
[Black "Koch, Jean-Rene"]
[Result "1-0"]
[ECO "D32"]
[WhiteElo "2442"]
[BlackElo "2441"]
[Annotator "RC"]
[PlyCount "95"]
[EventDate "2022.06.09"]
[EventType "team-tourn"]
[EventCountry "FRA"]
[SourceTitle "playchess.com"]
[Source "ChessBase"]
[SourceQuality "1"]
[TimeControl "40/5400+30:1800+30"]

1. d4 {[%emt 0:00:03]} d5 {[%emt 0:00:07]} 2. c4 {[%emt 0:00:03]} e6 {[%emt 0:00:07]} 3. Nc3 {[%emt 0:00:06]} c5 {[%emt 0:00:07]} 4. cxd5 {[%emt 0:00:13]} exd5 {[%emt 0:00:07]} 5. Nf3 {[%emt 0:00:15]} Nc6 {[%emt 0:00:10]} 6. dxc5 {[%emt 0:01:39]} d4 {[%emt 0:00:26]} 7. Na4 {[%emt 0:00:04]} Bxc5 {[%emt 0:00:11]} 8. Nxc5 {[%emt 0:00:08]} Qa5+ {[%emt 0:00:05]} 9. Bd2 {[%emt 0:00:06]} Qxc5 {[%emt 0:00:05]} 10. Rc1 {[%emt 0:00:08]} Qb6 {[%emt 0:03:47]} 11. e3 {[%emt 0:01:31]} dxe3 {[%emt 0:31:05]} 12. Bxe3 {[%emt 0:00:06]} Qxb2 {[%emt 0:00:36]} 13. Bc4 {[%emt 0:00:03]} Qb4+ {[%emt 0:09:20]} 14. Nd2 {[%emt 0:01:03]} Nge7 {[%emt 0:03:30]} 15. Bc5 {[%emt 0:05:18]} Qb2 {[%emt 0:04:08]} 16. O-O {[%emt 0:02:14]} O-O {[%emt 0:01:08]} 17. Ne4 {[%emt 0:11:23]} b6 {[%emt 0:23:52]} 18. Bd6 {[%emt 0:32:47]} Bf5 {[%emt 0:09:14]} 19. Rb1 {[%emt 0:01:11]} Qd4 {[%emt 0:00:49]} 20. Qxd4 {[%emt 0:00:54]} Nxd4 {[%emt 0:00:05]} 21. Bxe7 {[%emt 0:00:46]} Bxe4 {[%emt 0:01:43]} 22. Rbd1 {[%emt 0:02:35]} Rfe8 {[%emt 0:04:08]} 23. Rxd4 {[%emt 0:00:51]} Rxe7 {[%emt 0:00:05]} 24. Re1 {[%emt 0:00:03]} Rae8 {[%emt 0:03:35]} 25. Bb5 {[%emt 0:00:06]} Bc6 {[%emt 0:00:38]} 26. Rxe7 {[%emt 0:00:04]} Bxb5 {[%emt 0:00:06]} 27. Rxe8+ {[%emt 0:00:07]} Bxe8 {[%emt 0:00:03]} 28. Rd8 {[%emt 0:00:10]} Kf8 {[%emt 0:00:05]} 29. Rb8 {[%emt 0:00:05]} b5 {[%emt 0:03:20]} 30. Ra8 {[%emt 0:00:06]} Ke7 {[%emt 0:00:08]} 31. Rxa7+ {[%emt 0:00:03]} Kd6 {[%emt 0:00:10]} 32. a3 {[%emt 0:00:39]} Bd7 {[%emt 0:00:26]} 33. Kf1 {[%emt 0:00:26]} Be6 {[%emt 0:00:30]} 34. Ke2 {[%emt 0:00:18]} h5 {[%emt 0:01:13]} 35. Kd3 {[%emt 0:00:16]} Kc5 {[%emt 0:01:24]} 36. h4 {[%emt 0:05:06]} Kb6 {[%emt 0:00:20]} 37. Re7 {[%emt 0:00:16]} Kc5 {[%emt 0:00:15]} 38. Kc3 {[%emt 0:00:07]} Kd6 {[%emt 0:00:27]} 39. Rb7 {[%emt 0:01:08]} Kc5 {[%emt 0:00:36]} 40. f3 {[%emt 0:00:20]} g6 {[%emt 0:01:07]} 41. Rb8 {[%emt 0:31:47]} Bd7 {[%emt 0:02:11]} 42. Rd8 {[%emt 0:00:00]} Be6 {[%emt 0:00:11]} 43. Rd4 {[%emt 0:00:00]} Bd5 {[%emt 0:00:16]} 44. Rf4 {[%emt 0:00:00]} Kd6 {[%emt 0:03:29]} 45. Kd4 {[%emt 0:00:00]} f5 {[%emt 0:00:39]} 46. Ke3 {[%emt 0:00:00]} Ke5 {[%emt 0:01:55]} 47. Rb4 {[%emt 0:00:00]} Bc6 {[%emt 0:00:13]} 48. g3 {[%emt 0:00:00]} 1-0

[Event "FRA-ch Teams Top 16-A 2022"]
[Site "Chartres"]
[Date "2022.06.14"]
[Round "6.14"]
[White "Bailet, Pierre"]
[Black "Abergel, Thal"]
[Result "1/2-1/2"]
[ECO "B42"]
[WhiteElo "2509"]
[BlackElo "2378"]
[Annotator "RC"]
[PlyCount "47"]
[EventDate "2022.06.09"]
[EventType "team-tourn"]
[EventCountry "FRA"]
[SourceTitle "playchess.com"]
[Source "ChessBase"]
[SourceQuality "1"]
[TimeControl "40/5400+30:1800+30"]

1. e4 {[%emt 0:00:06]} c5 {[%emt 0:00:06]} 2. Nf3 {[%emt 0:00:10]} e6 {[%emt 0:00:15]} 3. d4 {[%emt 0:00:23]} cxd4 {[%emt 0:00:07]} 4. Nxd4 {[%emt 0:00:06]} a6 {[%emt 0:00:05]} 5. Bd3 {[%emt 0:01:14]} Ne7 {[%emt 0:00:09]} 6. O-O {[%emt 0:02:09]} Nbc6 {[%emt 0:00:11]} 7. Nb3 {[%emt 0:03:23]} g6 {[%emt 0:01:38]} 8. Nc3 {[%emt 0:07:49]} Bg7 {[%emt 0:04:27]} 9. Bf4 {[%emt 0:06:19]} d6 {[%emt 0:15:13]} 10. Qd2 {[%emt 0:03:01]} O-O {[%emt 0:07:23]} 11. Rad1 {[%emt 0:06:30]} b5 {[%emt 0:08:56]} 12. Bh6 {[%emt 0:04:50]} Qb6 {[%emt 0:04:00]} 13. Bxg7 {[%emt 0:06:43]} Kxg7 {[%emt 0:00:03]} 14. Kh1 {[%emt 0:00:24]} b4 {[%emt 0:04:58]} 15. Na4 {[%emt 0:05:44]} Qa7 {[%emt 0:05:10]} 16. f4 {[%emt 0:03:33]} Rb8 {[%emt 0:08:33]} 17. f5 {[%emt 0:11:25]} exf5 {[%emt 0:00:39]} 18. exf5 {[%emt 0:00:08]} Bxf5 {[%emt 0:02:49]} 19. Bxf5 {[%emt 0:00:27]} Nxf5 {[%emt 0:00:39]} 20. Rxf5 {[%emt 0:04:05]} gxf5 {[%emt 0:00:05]} 21. Qg5+ {[%emt 0:00:09]} Kh8 {[%emt 0:00:02]} 22. Qf6+ {[%emt 0:06:42]} Kg8 {[%emt 0:00:03]} 23. Qg5+ {[%emt 0:09:06]} Kh8 {[%emt 0:00:17]} 24. Qf6+ {[%emt 0:00:04]} 1/2-1/2

[Event "FRA-ch Teams Top 16-A 2022"]
[Site "Chartres"]
[Date "2022.06.14"]
[Round "6.15"]
[White "Kuhn, Clement"]
[Black "Migot, Tangi"]
[Result "0-1"]
[ECO "D13"]
[WhiteElo "2280"]
[BlackElo "2353"]
[Annotator "RC"]
[PlyCount "60"]
[EventDate "2022.06.09"]
[EventType "team-tourn"]
[EventCountry "FRA"]
[SourceTitle "playchess.com"]
[Source "ChessBase"]
[SourceQuality "1"]
[TimeControl "40/5400+30:1800+30"]

1. d4 {[%emt 0:00:14]} d5 {[%emt 0:00:10]} 2. c4 {[%emt 0:00:26]} c6 {[%emt 0:00:06]} 3. cxd5 {[%emt 0:00:24]} cxd5 {[%emt 0:00:07]} 4. Bf4 {[%emt 0:00:05]} Nc6 {[%emt 0:00:09]} 5. e3 {[%emt 0:00:24]} Nf6 {[%emt 0:00:58]} 6. Nc3 {[%emt 0:00:35]} a6 {[%emt 0:00:33]} 7. Be2 {[%emt 0:00:28]} Bf5 {[%emt 0:00:34]} 8. Nf3 {[%emt 0:00:51]} e6 {[%emt 0:01:04]} 9. Qb3 {[%emt 0:00:21]} Nh5 {[%emt 0:01:18]} 10. Bg5 {[%emt 0:07:58]} Qc7 {[%emt 0:00:57]} 11. Ne5 {[%emt 0:03:55]} h6 {[%emt 0:07:22]} 12. Bh4 {[%emt 0:13:11]} Nxe5 {[%emt 0:07:13]} 13. dxe5 {[%emt 0:00:08]} g5 {[%emt 0:00:07]} 14. Qa4+ {[%emt 0:04:14]} Qc6 {[%emt 0:00:08]} 15. Nb5 {[%emt 0:15:12]} Rc8 {[%emt 0:27:02]} 16. O-O {[%emt 0:17:43]} Bc5 {[%emt 0:06:12]} 17. b4 {[%emt 0:06:46]} O-O {[%emt 0:04:04]} 18. Rac1 {[%emt 0:10:49]} axb5 {[%emt 0:04:03]} 19. Bxb5 {[%emt 0:00:37]} Qb6 {[%emt 0:02:33]} 20. bxc5 {[%emt 0:00:11]} Rxc5 {[%emt 0:00:06]} 21. Rxc5 {[%emt 0:00:29]} Qxc5 {[%emt 0:00:06]} 22. Be2 {[%emt 0:02:51]} b5 {[%emt 0:05:49]} 23. Qb3 {[%emt 0:01:34]} gxh4 {[%emt 0:01:35]} 24. Bxh5 {[%emt 0:00:09]} b4 {[%emt 0:00:14]} 25. h3 {[%emt 0:01:44]} Ra8 {[%emt 0:03:00]} 26. Qb2 {[%emt 0:06:56]} Qc3 {[%emt 0:04:35]} 27. Qe2 {[%emt 0:02:05]} Qc4 {[%emt 0:01:09]} 28. Qxc4 {[%emt 0:01:36]} dxc4 {[%emt 0:00:05]} 29. Be2 {[%emt 0:00:18]} b3 {[%emt 0:04:58]} 30. Bxc4 {[%emt 0:00:58]} b2 {[%emt 0:00:54]} 0-1

[Event "FRA-ch Teams Top 16-A 2022"]
[Site "Chartres"]
[Date "2022.06.14"]
[Round "6.16"]
[White "Schippke, Manon"]
[Black "Aflalo, Sophie"]
[Result "0-1"]
[ECO "B28"]
[WhiteElo "2072"]
[BlackElo "2152"]
[Annotator "RC"]
[PlyCount "94"]
[EventDate "2022.06.09"]
[EventType "team-tourn"]
[EventCountry "FRA"]
[SourceTitle "playchess.com"]
[Source "ChessBase"]
[SourceQuality "1"]
[TimeControl "40/5400+30:1800+30"]

1. e4 {[%emt 0:00:02]} c5 {[%emt 0:06:25]} 2. Nf3 {[%emt 0:00:03]} a6 {[%emt 0:00:03]} 3. c3 {[%emt 0:01:11]} Nf6 {[%emt 0:00:21]} 4. e5 {[%emt 0:07:07]} Nd5 {[%emt 0:00:05]} 5. d4 {[%emt 0:06:35]} cxd4 {[%emt 0:00:11]} 6. cxd4 {[%emt 0:07:09]} e6 {[%emt 0:03:07]} 7. Bd3 {[%emt 0:03:09]} d6 {[%emt 0:07:55]} 8. Nc3 {[%emt 0:08:57]} Nc6 {[%emt 0:05:40]} 9. Nxd5 {[%emt 0:02:51]} exd5 {[%emt 0:00:07]} 10. O-O {[%emt 0:00:23]} Be7 {[%emt 0:13:59]} 11. h3 {[%emt 0:58:33]} Be6 {[%emt 0:06:58]} 12. Re1 {[%emt 0:00:00]} dxe5 {[%emt 0:07:58]} 13. dxe5 {[%emt 0:00:00]} Rc8 {[%emt 0:02:39]} 14. Be3 {[%emt 0:00:00]} O-O {[%emt 0:04:00]} 15. Nd4 {[%emt 0:00:00]} Nxd4 {[%emt 0:12:28]} 16. Bxd4 {[%emt 0:00:00]} Bg5 {[%emt 0:00:35]} 17. Rf1 {[%emt 0:00:00]} Bf4 {[%emt 0:05:07]} 18. g3 {[%emt 0:00:00]} Qg5 {[%emt 0:21:52]} 19. h4 Qh6 20. Qf3 Bd2 {[%emt 0:00:00]} 21. Qe2 {[%emt 0:00:00]} Bf4 {[%emt 0:00:00]} 22. Qf3 {[%emt 0:00:00]} Bd2 {[%emt 0:02:00]} 23. Qe2 Bh3 24. Rfd1 Bb4 {[%emt 0:00:00]} 25. Qe3 {[%emt 0:00:00]} Qe6 {[%emt 0:01:30]} 26. Rac1 {[%emt 0:00:00]} Be7 {[%emt 0:00:00]} 27. Be2 {[%emt 0:08:00]} Bg4 28. f3 {[%emt 0:00:00]} Bf5 {[%emt 0:00:00]} 29. g4 {[%emt 0:00:00]} Bc2 {[%emt 0:00:00]} 30. Rxc2 {[%emt 0:00:00]} Rxc2 {[%emt 0:00:00]} 31. Bd3 {[%emt 0:00:00]} Rc7 {[%emt 0:00:00]} 32. h5 {[%emt 0:00:00]} h6 {[%emt 0:00:00]} 33. Bb1 {[%emt 0:00:00]} f5 {[%emt 0:01:00]} 34. Qd3 {[%emt 0:00:14]} g6 {[%emt 0:02:10]} 35. hxg6 {[%emt 0:00:54]} Qxg6 {[%emt 0:00:11]} 36. Kf1 {[%emt 0:00:34]} Bh4 {[%emt 0:00:30]} 37. Bc3 {[%emt 0:01:14]} Rd7 {[%emt 0:01:31]} 38. Rd2 {[%emt 0:00:37]} Qg5 {[%emt 0:00:32]} 39. e6 {[%emt 0:00:51]} fxg4 {[%emt 0:00:23]} 40. Rf2 {[%emt 0:00:56]} Re7 {[%emt 0:00:40]} 41. Qd4 {[%emt 0:30:21]} Qc1+ {[%emt 0:30:17]} 42. Kg2 {[%emt 0:00:37]} gxf3+ {[%emt 0:00:36]} 43. Rxf3 {[%emt 0:01:03]} Rf6 {[%emt 0:00:00]} 44. Qxh4 {[%emt 0:00:00]} Rg7+ {[%emt 0:00:00]} 45. Qg3 {[%emt 0:00:00]} d4 {[%emt 0:00:00]} 46. Qxg7+ {[%emt 0:00:34]} Kxg7 {[%emt 0:00:00]} 47. Rg3+ {[%emt 0:00:04]} Kh8 {[%emt 0:00:00]} 0-1

[Event "FRA-ch Teams Top 16-A 2022"]
[Site "Chartres"]
[Date "2022.06.14"]
[Round "6.17"]
[White "Lagarde, Maxime"]
[Black "Grandelius, Nils"]
[Result "1/2-1/2"]
[ECO "A36"]
[WhiteElo "2628"]
[BlackElo "2635"]
[Annotator "RC"]
[PlyCount "25"]
[EventDate "2022.06.09"]
[EventType "team-tourn"]
[EventCountry "FRA"]
[SourceTitle "playchess.com"]
[Source "ChessBase"]
[SourceQuality "1"]
[TimeControl "40/5400+30:1800+30"]

1. c4 {[%emt 0:00:01]} c5 {[%emt 0:02:58]} 2. Nc3 {[%emt 0:00:12]} Nc6 {[%emt 0:04:04]} 3. g3 {[%emt 0:00:04]} g6 {[%emt 0:00:05]} 4. Bg2 {[%emt 0:00:02]} Bg7 {[%emt 0:00:03]} 5. d3 {[%emt 0:00:02]} d6 {[%emt 0:01:15]} 6. e3 {[%emt 0:00:05]} e6 {[%emt 0:07:43]} 7. Nge2 {[%emt 0:00:10]} Nge7 {[%emt 0:00:04]} 8. O-O {[%emt 0:00:15]} O-O {[%emt 0:00:05]} 9. b3 {[%emt 0:01:08]} Rb8 {[%emt 0:06:11]} 10. Ba3 {[%emt 0:08:50]} a6 {[%emt 0:16:41]} 11. d4 {[%emt 0:07:20]} cxd4 {[%emt 0:01:49]} 12. exd4 {[%emt 0:21:53]} d5 {[%emt 0:03:57]} 13. Rc1 {[%emt 0:10:59]} 1/2-1/2

[Event "FRA-ch Teams Top 16-A 2022"]
[Site "Chartres"]
[Date "2022.06.14"]
[Round "6.18"]
[White "Korobov, Anton"]
[Black "Kamsky, Gata"]
[Result "1-0"]
[ECO "D15"]
[WhiteElo "2671"]
[BlackElo "2661"]
[Annotator "TA"]
[PlyCount "65"]
[EventDate "2022.06.09"]
[EventType "team-tourn"]
[EventCountry "FRA"]
[SourceTitle "playchess.com"]
[Source "ChessBase"]
[SourceQuality "1"]
[TimeControl "40/5400+30:1800+30"]

{[%evp 9,65,9,14,0,10,0,0,0,0,-2,0,0,0,0,0,0,0,0,48,54,57,55,52,20,27,0,31,50,25,41,134,125,141,51,135,162,140,156,196,179,189,212,195,168,262,228,224,229,747,731,735,708,766,766,965,985,1115,874]} 1. d4 {[%emt 0:00:05]} d5 {[%emt 0:00:11]} 2. c4 {[%emt 0:00:10]} c6 {[%emt 0:00:06]} 3. Nf3 {[%emt 0:00:13]} Nf6 {[%emt 0:00:06]} 4. Nc3 {[%emt 0:00:07]} a6 {[%emt 0:00:05]} 5. a4 {[%emt 1:32:25]} e6 {[%emt 0:00:35]} 6. Bf4 {[%emt 0:00:00] D15: Slav Defence: 4 Nc3 a6 and gambit lines after 4 Nc3 dxc4.} c5 {[%emt 0:11:11]} 7. e3 {[%emt 0:00:00]} Nc6 {[%emt 0:00:05] [#]} 8. Rc1 $146 {[%emt 0:00:00] The position is equal.} ({Predecessor:} 8. Be2 cxd4 9. exd4 Be7 10. O-O O-O 11. Ne5 dxc4 12. Nxc6 bxc6 13. Bxc4 a5 14. Re1 {½-½ (58) Indjic,A (2604)-Kobalia,M (2620) Sochi 2018}) 8... cxd4 {[%emt 0:10:57]} 9. exd4 {[%emt 0:00:00]} Bd6 {[%emt 0:02:59]} 10. Bxd6 {[%emt 0:00:00]} Qxd6 {[%emt 0:00:05]} 11. c5 $1 {[%emt 0:00:00]} Qc7 {[%emt 1:09:40]} 12. Bd3 {[%emt 0:00:00]} O-O {[%emt 0:00:00]} 13. O-O {[%emt 0:00:00]} e5 {[%emt 0:00:00]} (13... Bd7 $11 {should be considered.}) 14. dxe5 {[%emt 0:00:00]} Nxe5 {[%emt 0:00:00]} 15. Nxe5 {[%emt 0:00:00]} Qxe5 {[%emt 0:00:00]} 16. h3 {[%emt 0:00:00]} Bd7 17. b4 {[%emt 0:00:00]} Qf4 18. Qb3 {[%emt 0:06:30]} Qg5 {[%emt 0:00:00] [#] ...Bxh3 is the strong threat.} 19. f4 {[%emt 0:00:00]} Qh4 {[%emt 0:00:00]} (19... Qh5 $14) 20. Nxd5 $16 {[%emt 0:01:00]} Rad8 {[%emt 0:04:30] Threatens to win with ...Nxd5.} 21. Ne7+ {[%emt 0:00:00]} Kh8 {[%emt 0:00:00][%cal Od7h3]} 22. Nf5 {[%emt 0:01:00] 0x0.000bd35484f1dp-1022s more active pieces.} Bxf5 {[%emt 0:00:00]} 23. Bxf5 {[%emt 0:00:00]} Nh5 {[%emt 0:01:30] [#]} 24. Kh2 {[%emt 0:00:00] Inhibits Ng3.} Rd4 {[%emt 0:00:00]} 25. Qc3 {[%emt 0:01:30]} Rfd8 26. Rce1 {[%emt 0:00:00][%cal Oc3d4] Hoping for Qxd4!} Rxf4 {[%emt 0:00:00]} (26... Qf6 $142 27. Bg4 Nxf4) 27. Qe3 $18 {[%emt 0:00:00][%cal Oe3e8] Intending Qe8+! and mate.} g6 {[%emt 0:00:00]} 28. g3 {[%emt 0:00:00] Dancing on a razor blade.} Rxf1 $2 {[%emt 0:00:00]} (28... Qxg3+ 29. Qxg3 Nxg3 30. Rxf4 Nxf5 31. Rxf5 Rd2+ 32. Kg1 gxf5) 29. gxh4 {[%emt 0:00:00] White is clearly winning.} Rxf5 {[%emt 0:00:00]} 30. Qe7 {[%emt 0:00:00][%csl LRb7,LRd8]} Rg8 {[%emt 0:01:07]} 31. Qxb7 {[%emt 0:00:00]} g5 {[%emt 0:00:05]} 32. Rg1 {[%emt 0:00:00]} Re8 {[%emt 0:00:57]} 33. Rxg5 {[%emt 0:00:00] Weighted Error Value: White=0.05 (flawless) /Black=0.22 (precise)} 1-0